Cogmind - Beta 14 @@@ ROGUE MODE // 2024.10.17 @ 02:35:18 Player: Tails Result: Destroyed by Y-45 Defender with Beam Rifle Performance ------------- Evolutions (0) 0 Regions Visited (3) 600 Robots Destroyed (17) 85 Value Destroyed (401) 401 Prototype IDs (0) 0 Alien Tech Used (0) 0 Bonus (0) 0 TOTAL SCORE: 1086 Bonus ------- None Cogmind --------- Core Integrity 0/250 Matter 282/300 Energy 250/250 System Corruption 0% Temperature Warning (382) Movement Core (250) Ox4 Location -9/Recycling Parts ------- > --- POWER (1) -------- Ion Engine > --- PROPULSION (2) --- (None) > --- UTILITY (2) ------ Small Storage Unit Structural Scanner > --- WEAPON (2) ------- Subdweller Laser > --- INVENTORY (8) ---- Subdweller Power Source Visual Processing Unit Medium Laser Small Laser Peak State ------------ > --- POWER ------------ Ion Engine > --- PROPULSION ------- Light Treads > --- UTILITY ---------- Small Storage Unit Structural Scanner > --- WEAPON ----------- Subdweller Laser Subdweller Machine Gun > --- INVENTORY -------- Subdweller Power Source Visual Processing Unit Medium Laser Small Laser [Rating: 8] Favorites ----------- Power Ion Engine Engine Ion Engine Propulsion Light Treads Treads Light Treads Leg Aluminum Leg Utility Small Storage Unit Device Structural Scanner Storage Small Storage Unit Protection Backup Plating I Weapon Small Laser Energy Gun Small Laser Ballistic Gun Subdweller Machine Gun Build | -11 -10 -10 -9 ------- Run | Yrd Mat Sub Rec Slots Evolved . | . . . . Power . | . . . . Propulsion . | . . . . Utility . | . . . . Weapon . | . . . . Parts Attached 15 | 6 2 5 2 Power 2 | 1 . 1 . Engine 2 | 1 . 1 . Core . | . . . . Reactor . | . . . . Propulsion 6 | 2 2 1 1 Treads 5 | 2 2 1 . Leg 1 | . . . 1 Wheel . | . . . . Hover . | . . . . Flight . | . . . . Utility 2 | 1 . 1 . Device 1 | . . 1 . Storage 1 | 1 . . . Processor . | . . . . Hackware . | . . . . Protection . | . . . . Artifact . | . . . . Weapon 5 | 2 . 2 1 Energy Gun 4 | 2 . 1 1 Energy Cannon . | . . . . Ballistic Gun 1 | . . 1 . Ballistic Cannon . | . . . . Launcher . | . . . . Special Weapon . | . . . . Impact Weapon . | . . . . Slashing Weapon . | . . . . Piercing Weapon . | . . . . Special Melee Weapon . | . . . . Unidentified Prototypes . | . . . . Parts Lost 7 | . . 4 3 Power 1 | . . 1 . Propulsion 4 | . . 2 2 Utility 1 | . . 1 . Weapon 1 | . . . 1 Highest Loss Streak 2 | . . 2 2 To Critical Strikes . | . . . . Average Slot Usage (%) 88 | . 95 90 78 Engine 13 | . 14 13 14 Treads 21 | . 28 25 5 Device 3 | . . 1 14 Storage 14 | . 14 14 14 Protection 5 | . 9 6 . Energy Gun 24 | . 28 26 14 Ballistic Gun 3 | . . 1 13 Peak Build Rating 8 | 6 7 7 8 Average Rating 6 | 3 6 6 7 On Entrance 5 | . 6 7 7 Naked Turns . | . . . . Heaviest Build 19 | 13 14 17 19 Greatest Support 40 | 40 40 40 20 Greatest Overweight (x) 6 | . . . 6 Average Overweight (x) . | . . . 1 Largest Inventory Capacity 8 | 8 8 8 8 Average Capacity 7 | 6 8 8 8 Most Carried 6 | 5 5 6 5 Average Carried 4 | 2 3 4 4 Final Capacity 8 | 8 8 8 8 Final Carried 5 | 2 5 4 4 Class Distribution -------------------- 100% | Mutant Dominant Class ---------------- Mutant | -10/Materials Mutant | -10/Subcaves Mutant | -9/Recycling Resources | -11 -10 -10 -9 ----------- Run | Yrd Mat Sub Rec Matter Collected 352 | 147 128 52 25 Remotely . | . . . . Salvage Created 621 | . 133 272 216 Parts 42 | . 7 25 10 Haulers Intercepted . | . . . . Recyclers Shooed . | . . . . Parts Field Recycled . | . . . . Retrieved Matter . | . . . . Parts Self-Destructed 11 | . . 11 . Prevented . | . . . . Kills | -11 -10 -10 -9 ------- Run | Yrd Mat Sub Rec Combat Hostiles Destroyed 10 | . 2 7 1 Guns 10 | . 2 7 1 Classes Destroyed 8 | . 3 3 2 Builder 2 | . 1 . 1 Recycler 2 | . . . 2 Turret 2 | . . 2 . Watcher 1 | . 1 . . Swarmer 3 | . . 3 . Grunt 2 | . 2 . . Sentry 1 | . . . 1 Subdweller 4 | . . 4 . Best Kill Streak 4 | . 4 3 3 Combat Bots Only 3 | . 2 3 1 Max Kills in Single Turn 2 | . 2 2 1 Gunslinging 1 | . . 1 . Exploded . | . . . . Melee . | . . . . Uniques/NPCs Destroyed . | . . . . Combat | -11 -10 -10 -9 -------- Run | Yrd Mat Sub Rec Hostile Shots Fired 197 | . 27 141 29 Missed 78 | . 8 63 7 Damage Taken 1304 | . 206 783 315 Core 259 | . 23 127 109 Absorbed by Shields . | . . . . Core Remaining (%) 100 | 100 . . . Volleys Fired 63 | . 14 33 16 Largest 2 | . 2 2 2 Hottest 90 | . 80 90 90 Shots Fired 116 | . 28 58 30 Gun 116 | . 28 58 30 Cannon . | . . . . Launcher . | . . . . Special . | . . . . Kinetic 20 | . . 6 14 Thermal 70 | . 14 40 16 Explosive . | . . . . Electromagnetic 26 | . 14 12 . Robot Hit Streak 13 | . 6 13 8 Robot Miss Streak 3 | . 2 3 2 Penetration Max . | . . . . Secondary Targets 3 | . . 3 . Max Gunslinging Chain 1 | . . 1 . Shots Hit Robots 77 | . 17 40 20 Core Hits 29 | . 6 18 5 Critical Kills . | . . . . Critical Parts Destroyed . | . . . . Critical Strikes 1 | . . 1 . Burn 1 | . . 1 . Melee Attacks . | . . . . Impact . | . . . . Slashing . | . . . . Piercing . | . . . . Sneak Attacks . | . . . . Combat Hostiles . | . . . . Follow-up Attacks . | . . . . Damage Inflicted 1377 | . 399 555 423 Guns 1178 | . 200 555 423 Cannons . | . . . . Explosions 199 | . 199 . . Melee . | . . . . Ramming . | . . . . Kinetic 330 | . . 124 206 Thermal 822 | . 275 330 217 Explosive . | . . . . Electromagnetic 225 | . 124 101 . Impact . | . . . . Slashing . | . . . . Piercing . | . . . . Highest Corruption . | . . . . Average Corruption . | . . . . Corruption Purged . | . . . . Corruption Blocked . | . . . . Overload Shots . | . . . . Overflow Damage 4 | . 4 . . Projectiles . | . . . . Explosions 4 | . 4 . . Melee . | . . . . Knockbacks . | . . . . Impact . | . . . . Kinetic . | . . . . Secondary . | . . . . Self-Inflicted Damage . | . . . . Shots . | . . . . Rammed . | . . . . Targets Rammed . | . . . . Kicked . | . . . . Crushed . | . . . . Highest Temperature 373 | . 349 18 373 Average Temperature 155 | . 172 8 152 Received Heat Transfer 531 | . 114 300 117 Siege Activations . | . . . . Robots Corrupted . | . . . . Combat Hostiles . | . . . . Parts Fried 1 | . 1 . . Impact Corruptions . | . . . . Robots Melted . | . . . . Combat Hostiles . | . . . . Parts Melted 2 | . 1 1 . Heat Transferred 1642 | . 425 942 275 Parts Sabotaged . | . . . . Parts Stolen . | . . . . Parts Stripped . | . . . . Power Chain Reactions 3 | . 3 . . Alert | -11 -10 -10 -9 ------- Run | Yrd Mat Sub Rec Peak Influence 108 | . 108 . 104 Initial 74 | . . . 74 Average 62 | . 61 . 88 Maximum Alert Level . | . . . . Low Security (%) 100 | 100 100 . 100 Level 1 . | . . . . Level 2 . | . . . . Level 3 . | . . . . Level 4 . | . . . . Level 5 . | . . . . High Security . | . . . . Max Security . | . . . . Squads Dispatched 1 | . 1 . . Investigation . | . . . . Extermination . | . . . . Reinforcement 1 | . 1 . . Assault . | . . . . Garrison . | . . . . Intercept . | . . . . Searches Triggered . | . . . . Construction Impeded . | . . . . Haulers Reinforced . | . . . . Active Scanning Responses . | . . . . Cargo Convoy Interrupts . | . . . . Stealth | -11 -10 -10 -9 --------- Run | Yrd Mat Sub Rec Distress Signals . | . . . . Communications Jammed . | . . . . Distress Signals . | . . . . Times Spotted 20 | . 6 12 2 Peak Tracking Total 6 | . 2 6 1 Tactical Retreats 2 | . . 2 . Traps | -11 -10 -10 -9 ------- Run | Yrd Mat Sub Rec Traps Triggered . | . . . . Indirectly . | . . . . Trap Hack Attempts . | . . . . Triggered . | . . . . Disarmed . | . . . . Reprogrammed . | . . . . Reused . | . . . . Traps Extracted . | . . . . Installed . | . . . . Triggered . | . . . . Machines | -11 -10 -10 -9 ---------- Run | Yrd Mat Sub Rec Machines Disabled . | . . . . Max in Single Turn . | . . . . Machines Repaired . | . . . . Machines Dismantled . | . . . . Machines Sabotaged . | . . . . Overloaded Fab Kills . | . . . . Hacking | -11 -10 -10 -9 --------- Run | Yrd Mat Sub Rec Machines Accessed 3 | . 2 1 . Terminals 1 | . 1 . . Fabricators . | . . . . Repair Stations 1 | . 1 . . Recycling Units . | . . . . Scanalyzers . | . . . . Garrison Access . | . . . . Total Hacks 5 | . 2 3 . Successful 5 | . 2 3 . Failed . | . . . . Catastrophic . | . . . . Database Lockouts . | . . . . Manual . | . . . . Terminals 1 | . 1 . . Fabricators . | . . . . Repair Stations 1 | . 1 . . Recycling Units . | . . . . Scanalyzers . | . . . . Garrison Access . | . . . . Terminal Hacks 4 | . 1 3 . Record 3 | . . 3 . Zone Layout 1 | . 1 . . Fabricator Hacks . | . . . . Repair Station Hacks 1 | . 1 . . Refit 1 | . 1 . . Recycling Unit Hacks . | . . . . Scanalyzer . | . . . . Garrison Access Hacks . | . . . . Unauthorized Hacks . | . . . . Terminals . | . . . . Fabricators . | . . . . Repair Stations . | . . . . Recycling Units . | . . . . Scanalyzers . | . . . . Garrison Access . | . . . . Data Cores Recovered . | . . . . Used . | . . . . Hacking Detections . | . . . . Full Trace Events . | . . . . Feedback Events . | . . . . Feedback Blocked . | . . . . Robot Schematics Acquired . | . . . . Robots Built . | . . . . Authchips . | . . . . Time . | . . . . Total Robot Build Rating . | . . . . Part Schematics Acquired . | . . . . Parts Built . | . . . . Authchips . | . . . . Time . | . . . . Total Part Build Rating . | . . . . Parts Repaired . | . . . . Time . | . . . . Parts Recycled . | . . . . Recycled Matter . | . . . . Retrieved Matter . | . . . . Retrieved Components . | . . . . Parts Scanalyzed . | . . . . Part Schematics Acquired . | . . . . Parts Damaged . | . . . . Bothacking | -11 -10 -10 -9 ------------ Run | Yrd Mat Sub Rec Used RIF Installer . | . . . . Robots Hacked . | . . . . Non-combat . | . . . . Combat . | . . . . Robot Hacks Applied . | . . . . Relay Couplers Released . | . . . . Fabnet Peak Effective % . | . . . . Robots Rewired . | . . . . Allies Hacked . | . . . . Hacks Repelled . | . . . . Allies | -11 -10 -10 -9 -------- Run | Yrd Mat Sub Rec Total Allies . | . . . . Largest Group . | . . . . Highest-Rated Group . | . . . . Highest-Rated Ally . | . . . . Total Orders . | . . . . Ally Attacks . | . . . . Total Damage . | . . . . Kills . | . . . . Allies Corrupted . | . . . . Allies Melted . | . . . . Intel | -11 -10 -10 -9 ------- Run | Yrd Mat Sub Rec Robot Analysis Total . | . . . . Derelict Logs Recovered . | . . . . Drone Launches . | . . . . Drone Recoveries . | . . . . Exploration | -11 -10 -10 -9 ------------- Run | Yrd Mat Sub Rec Turns Passed 1150 | 87 279 558 226 Spaces Moved 558 | 49 145 278 86 Core 25 | 7 . . 18 Treads 520 | 42 145 278 55 Legs 13 | . . . 13 Wheels . | . . . . Hover . | . . . . Flight . | . . . . Fastest Speed 50 | 50 160 160 160 Average Speed 165 | 144 160 160 204 Slowest Speed 350 | 160 160 160 350 Overloaded Moves . | . . . . Propulsion Burnouts . | . . . . Robots Hopped . | . . . . Cave-ins Triggered . | . . . . Exploration Rate (%) 14 | 4 19 15 20 Regions Visited 3 Branch Regions 2 Pre-discovered Areas . | . . . . Known Exits Taken 1 | . . 1 . Unknown Exits Taken 2 | 1 1 . . Scrap Searched . | . . . . Spaces Dug . | . . . . Terrain Destroyed 11 | . 11 . . Melee . | . . . . Projectile . | . . . . AOE 11 | . 11 . . Terrain Rammed . | . . . . Walls Destroyed . | . . . . Machines Disabled . | . . . . Actions | -11 -10 -10 -9 --------- Run | Yrd Mat Sub Rec Total 666 | 65 163 333 105 Wait 18 | 4 . 14 . Move 555 | 48 144 277 86 Hop . | . . . . Pick Up 14 | 7 3 3 1 Fast Attach 1 | 1 . . . Attach 10 | 5 . 4 1 Detach . | . . . . Swap 4 | . 2 1 1 Drop 1 | . . 1 . Fire 63 | . 14 33 16 Melee . | . . . . Ram . | . . . . Kick . | . . . . Crush . | . . . . Escape Stasis . | . . . . Rewire . | . . . . Trap . | . . . . Miscellaneous . | . . . . Route ------- -11/Scrapyard -10/Materials -10/Subcaves (discovered 3 exits: Mat x2 / *Rec) -9/Recycling History --------- Turn | Location | Event 9 | -11/Scrapyard | Discovered new exit (range 16) 88 | -11/Scrapyard | Entered Materials 306 | -10/Materials | Build established: Mutant 344 | -10/Materials | Discovered new exit (range 4) 367 | -10/Materials | Entered Subcaves 427 | -10/Subcaves | Visited Clippyterm 431 | -10/Subcaves | Identified exit to Materials 431 | -10/Subcaves | Identified exit to Recycling 853 | -10/Subcaves | Core integrity fell below 50% 925 | -10/Subcaves | Entered Recycling 926 | -9/Recycling | Met a Zionite searching for Scraptown 1133 | -9/Recycling | Core integrity fell below 20% 1151 | -9/Recycling | Destroyed by Y-45 Defender with Beam Rifle Last Messages --------------- to find it, only that you access it somewhere from Recycling here." 0B-FB9(z): "Anyway I've been here searching too long already, time to slink back to the caves before I'm caught. You'd best do the same." Lgt. Treads destroyed. Critical hit (Burn: +37). Y-45 Defender destroyed. R-06 Scavenger collects Lgt. Treads. R-06 Scavenger collects Heat Sink. Acquired 25 matter. Acquired Aluminum Leg. Y-45 Defender springs to life. U-05 Engineer destroyed. R-06 Scavenger destroyed. R-06 Scavenger collects Welding Torch. Aluminum Leg destroyed. R-06 Scavenger collects Wheel. R-06 Scavenger destroyed. Sub. Machine Gun destroyed. Map ----- +----------------------------------------------------+ | ??????????????############ ##??????????????????? | | ??????????????############ ##??????????????????? | | ??????????????## # ##??????????????????? | | ??????????????## # ##??????????????????? | | ??????????????## """ """ # ##??????????????????? | | ??????????????## """ """ + ##??????????????????? | | ??????????????## """ """ # ##??????????????????? | | ??????????????## """ """ # ##??????????????????? | | ??????????????## # ##??????????????????? | | ??????????????## # ##??????????????????? | | ??????????????############ ##??????????????????? | | ??????????????############ ##??????????????????? | | ??????????????############ % ## ?????????????????? | | ??????????????## ]= # ## ?????????????????? | | ??????????????## % ] #% # ?????????????????? | | ??????????????## + ## ?????????????????? | | ??????????????## # ## ????????????? | | ??????????????##[ # ##+##+##????????????? | | ??????????????## | # ##????????????? | | ??????????????## [ ! # #####?????????? | | ??????????????## # """" #####?????????? | | ??????????????############ """" ##?????????? | | ??????????????############ """" ##?????????? | | ????????????????"###"?"### #####??????? | | ????????????????"###"Y"### ##??????? | | ?????????? =@ ######## T#??????? | | ?????????? ! =%= ########?????????? | | ?????????? u=%* | ##???????????????? | | ??????????? =Y ##???????????????? | | ??????????? ##???????????????? | | ??????????? ## ######+###+##???????????????? | | ???????????########### ???????????????? | | ???????????###########???????????????????????????? | | ?????????????????????????????????????????????????? | | ?????????????????????????????????????????????????? | | ?????????????????????????????????????????????????? | | ?????????????????????????????????????????????????? | | ?????????????????????????????????????????????????? | | ?????????????????????????????????????????????????? | | ?????????????????????????????????????????????????? | | ?????????????????????????????????????????????????? | | ?????????????????????????????????????????????????? | | ?????????????????????????????????????????????????? | | ?????????????????????????????????????????????????? | | ?????????????????????????????????????????????????? | | ?????????????????????????????????????????????????? | | ?????????????????????????????????????????????????? | | ?????????????????????????????????????????????????? | | | | | +----------------------------------------------------+ Best States ------------- Heat Dissipation 25 Energy Generation 10 Energy Capacity 250 Matter Stores 300 Matter Capacity 300 Sight Range 16 Terrain Scan Density 10 Armor Coverage 80 Evasion (%) 50 Recoil Reduction 2 Item Schematics ----------------- None Robot Schematics ------------------ None Fabricated ------------ Nothing Alien Tech Used ----------------- None Achievements -------------- None Challenges ------------ None Game ------ Seed MediumNovaTrident Manual? 0 Play Time 00:11:25 Cumulative 2.4 hours Start 2024.10.17 @ 02:24:13 End 2024.10.17 @ 02:35:18 Sessions 1 Manual Loads 0 Difficulty Rogue Special Mode None Game No. 3 Rogue 2 Adventurer 1 Explorer 0 Win Type - Total 0 Types 0/0/0/0/0/0/0/0/0 Lore% 0 Gallery% 8 Achievement% 6 Wizard Run 0 Options --------- Layout 1 ASCII 0 Keyboard 0 Movement Mouse Keybinds 0 Fullscreen 1 Font 32/SmallcapsGlow Map View 50x35 Zoom Use 0% Tactical HUD 0 Map Filters NONE Filters NONE Steam 0 RUN: f4bc8ed7-f4b9-4224-9864-829abe95210c